[Event "125-Jahre Werder Bremen 2024"]
[Site "Bremen"]
[Date "2024.03.03"]
[Round "2.5"]
[White "Kopylov, Michael"]
[Black "Teclaf, Pawel"]
[Result "1/2-1/2"]
[ECO "E15"]
[WhiteElo "2352"]
[BlackElo "2556"]
[Annotator "TA"]
[PlyCount "56"]
[EventDate "2024.02.26"]
[EventType "swiss"]
[EventCountry "GER"]
[SourceTitle "playchess.com"]
[Source "ChessBase"]
[SourceQuality "1"]
[TimeControl "40/6000+30:1800+30"]

{[%evp 9,56,11,56,1,13,0,16,14,10,7,8,6,14,0,30,31,22,14,33,43,27,32,32,26,27,24,58,50,105,102,103,105,160,67,134,129,135,137,147,155,187,173,189,188,185,177,195,129,123]} 1. d4 {[%emt 0:00:09]} Nf6 {[%emt 0:00:12]} 2. c4 {[%emt 0:00:27]} b6 {[%emt 0:00:07]} 3. Nf3 {[%emt 0:08:45]} e6 {[%emt 0:00:10]} 4. g3 {[%emt 0:00:32]} Ba6 {[%emt 0:00:06]} 5. Nbd2 {[%emt 0:07:31]} b5 {[%emt 0:16:22]} 6. cxb5 {[%emt 0:06:10]} (6. c5 $14) 6... Bxb5 $11 {[%emt 0:00:18]} 7. Bg2 {[%emt 0:00:05]} Be7 {[%emt 0:04:09]} 8. O-O {[%emt 0:02:24] The position is equal.} O-O {[%emt 0:01:59]} 9. Ne5 {[%emt 0:05:23]} d5 {[%emt 0:04:20]} 10. Re1 {[%emt 0:00:50]} Nfd7 {[%emt 0:08:46]} 11. Ndf3 {[%emt 0:05:07]} c5 {[%emt 0:11:26]} 12. e4 {[%emt 0:07:39]} dxe4 {[%emt 0:05:37]} 13. Rxe4 {[%emt 0:00:32]} Bc6 {[%emt 0:01:28]} 14. Nxc6 {[%emt 0:06:13]} Nxc6 {[%emt 0:01:25]} 15. Re1 {[%emt 0:01:36]} Rc8 {[%emt 0:10:57]} 16. d5 {[%emt 0:03:27]} exd5 {[%emt 0:01:01]} 17. Qxd5 {[%emt 0:00:05]} Nb4 {[%emt 0:02:56]} 18. Qe4 {[%emt 0:07:12]} Bf6 {[%emt 0:05:46]} (18... Re8 $1 $14) 19. a3 $36 {[%emt 0:02:59][%mdl 2048] White is on the roll.} Nc6 {[%emt 0:00:12]} 20. Bh3 $1 {[%emt 0:01:34]} Nd4 {[%emt 0:04:03]} (20... h6 $142) 21. Nxd4 {[%emt 0:10:36]} ({White must play} 21. Bf4 $16) 21... cxd4 {[%emt 0:02:44]} (21... Bxd4 $14 22. Bf4 Nf6) 22. Bf4 {[%emt 0:05:10]} Nc5 {[%emt 0:02:15] Dodges Qb7} 23. Qf3 {[%emt 0:04:13]} Ra8 {[%emt 0:02:42] [#]} 24. Rac1 $1 {[%emt 0:02:37] White is much more active.} Qb6 {[%emt 0:05:52]} 25. b4 {[%emt 0:03:50]} Ne6 {[%emt 0:03:01] [#]} 26. Bxe6 {[%emt 0:04:17]} fxe6 {[%emt 0:00:08]} 27. Rc6 {[%emt 0:00:38]} Qb7 {[%emt 0:03:26]} 28. Qe4 {[%emt 0:02:30]} (28. Rexe6 $18 Rad8 29. Qb3) 28... Rfe8 {[%emt 0:03:27] Weighted Error Value: White=0.14 (very precise) /Black=0.20 (precise) .  Mistake:       	White=2     	Black=3      Inaccurate:     	---       	Black=2      OK:         	White=9     	Black=10     Best:        	White=2     	---        Strong:       	White=2     	---} 1/2-1/2

[Event "125-Jahre Werder Bremen 2024"]
[Site "Bremen"]
[Date "2024.03.03"]
[Round "2.6"]
[White "Pruijssers, Roeland"]
[Black "Kopylov, Daniel"]
[Result "1/2-1/2"]
[ECO "D35"]
[WhiteElo "2537"]
[BlackElo "2346"]
[Annotator "TA"]
[PlyCount "134"]
[EventDate "2024.02.26"]
[EventType "swiss"]
[EventCountry "GER"]
[SourceTitle "playchess.com"]
[Source "ChessBase"]
[SourceQuality "1"]
[TimeControl "40/6000+30:1800+30"]

{[%evp 43,134,10,9,4,15,14,22,17,20,26,23,18,15,0,59,63,106,108,139,129,145,145,148,144,155,124,177,92,103,120,139,134,144,125,124,133,108,118,181,169,177,177,166,184,121,8,8,8,8,8,8,0,0,0,0,0,8,0,8,0,0,0,8,8,8,8,8,8,8,8,92,8,8,8,8,8,8,8,8,8,8,8,8,8,8,0,8,8,8,8,8,0,0]} 1. d4 {[%emt 0:00:06]} Nf6 {[%emt 0:00:49]} 2. c4 {[%emt 0:00:15]} e6 {[%emt 0:00:10]} 3. Nc3 {[%emt 0:00:26]} d5 {[%emt 0:00:24]} 4. cxd5 {[%emt 0:00:14]} exd5 {[%emt 0:00:10]} 5. Bg5 {[%emt 0:00:10]} Bb4 {[%emt 0:01:27]} 6. e3 {[%emt 0:03:47]} h6 {[%emt 0:01:06]} 7. Bxf6 {[%emt 0:03:39] D35: Queen's Gambit Declined: Exchange Variation.} Qxf6 {[%emt 0:00:14]} 8. Qa4+ {[%emt 0:01:48]} Nc6 {[%emt 0:00:23]} 9. Bb5 {[%emt 0:10:25]} O-O {[%emt 0:08:01]} 10. Nge2 {[%emt 0:02:28]} Bxc3+ {[%emt 0:02:22]} 11. bxc3 {[%emt 0:01:32]} Ne7 {[%emt 0:01:08]} 12. O-O {[%emt 0:00:42]} Qd6 $146 {[%emt 0:07:25]} ({Predecessor:} 12... Bf5 13. Ng3 Bg6 14. Be2 c5 15. Qb5 Qb6 16. a4 c4 17. Ra2 Qxb5 18. axb5 a5 19. bxa6 Rxa6 {0-1 Grigoryan,K (2626)-Maghsoodloo,P (2716) FRA-chT Top 16 Gp Haute 2023 (3.4)}) 13. Bd3 {[%emt 0:02:41]} c5 {[%emt 0:04:44]} 14. Qa3 {[%emt 0:11:24]} b6 {[%emt 0:01:11]} 15. Rab1 {[%emt 0:04:33]} Rd8 {[%emt 0:09:14]} 16. dxc5 {[%emt 0:00:39]} Qxc5 {[%emt 0:08:02]} 17. Qxc5 {[%emt 0:00:11]} bxc5 {[%emt 0:00:09]} 18. Rfd1 {[%emt 0:00:26]} Be6 {[%emt 0:05:35]} 19. Rb7 {[%emt 0:07:46]} Kf8 {[%emt 0:08:14]} 20. Nf4 {[%emt 0:08:01]} Rdb8 {[%emt 0:04:46]} 21. Rdb1 {[%emt 0:00:45]} Rxb7 {[%emt 0:20:24]} 22. Rxb7 {[%emt 0:00:09]} Bc8 {[%emt 0:00:32]} 23. Rb2 {[%emt 0:10:14]} c4 {[%emt 0:08:48]} 24. Bc2 {[%emt 0:04:53]} g5 {[%emt 0:01:08]} 25. Ne2 {[%emt 0:00:08]} Nc6 {[%emt 0:00:41]} 26. f4 {[%emt 0:08:46]} Rb8 {[%emt 0:07:42]} 27. Rxb8 {[%emt 0:00:10]} Nxb8 {[%emt 0:00:01]} 28. Nd4 {[%emt 0:00:11]} f6 {[%emt 0:02:32]} ({Black should play} 28... Nd7 $11) 29. e4 {[%emt 0:05:27]} Bb7 {[%emt 0:03:32]} 30. Kf2 {[%emt 0:03:42]} Nd7 {[%emt 0:02:45]} 31. Ke3 {[%emt 0:01:48]} Nc5 {[%emt 0:01:18]} 32. exd5 {[%emt 0:01:33]} Bxd5 {[%emt 0:00:02]} 33. g3 {[%emt 0:00:07]} Bg8 {[%emt 0:01:28]} 34. Bd1 {[%emt 0:06:21]} Bh7 {[%emt 0:00:26]} (34... a5 $16 35. Nc6 gxf4+ 36. Kxf4 (36. gxf4 a4 $16) 36... a4) 35. Be2 {[%emt 0:01:05]} (35. fxg5 $18 fxg5 36. Nc6) 35... Ne4 $16 {[%emt 0:00:33]} 36. Bxc4 {[%emt 0:02:16]} Nxc3 {[%emt 0:00:18]} (36... gxf4+ 37. gxf4 (37. Kxf4 Nxc3 38. Nc6 Bg8 $14) 37... Nxc3 38. h3 $11) 37. Nc6 $1 {[%emt 0:01:05]} Bg8 {[%emt 0:00:42]} 38. Bxg8 {[%emt 0:01:00]} Kxg8 {[%emt 0:00:03]} 39. a3 {[%emt 0:00:14]} (39. Nxa7 Nxa2 40. Nc6 Kf7 $11) 39... a6 {[%emt 0:00:56]} 40. f5 {[%emt 0:01:06]} Kf7 {[%emt 0:00:33]} (40... h5 $16) 41. Kd3 $18 {[%emt 0:32:34]} Nb5 {[%emt 0:08:09] [#]} 42. a4 $1 {[%emt 0:00:00]} Nd6 {[%emt 0:02:37]} 43. g4 {[%emt 0:00:00]} h5 {[%emt 0:03:00]} 44. h3 {[%emt 0:00:00]} (44. gxh5 $16 {Strongly threatening Nb4.} Nxf5 45. Nb4) 44... hxg4 $11 {[%emt 0:01:00]} 45. hxg4 {[%emt 0:00:00]} Ke8 {[%emt 0:00:41]} 46. Kd4 {[%emt 0:00:00]} Nf7 $1 {[%emt 0:02:33]} 47. a5 {[%emt 0:00:00]} Nh6 {[%emt 0:02:50]} 48. Nb8 {[%emt 0:00:00]} Nxg4 {[%emt 0:00:35]} 49. Nxa6 {[%emt 0:00:00]} Ne5 {[%emt 0:02:29]} 50. Nb4 {[%emt 0:00:00]} Kd7 {[%emt 0:03:21]} 51. a6 {[%emt 0:00:00]} Kc8 {[%emt 0:01:44]} 52. Nd5 {[%emt 0:00:00]} Nd7 {[%emt 0:02:58]} 53. Ne3 {[%emt 0:00:00]} Ne5 {[%emt 0:02:58]} 54. Kd5 {[%emt 0:02:43]} g4 {[%emt 0:00:42]} 55. Ke6 {[%emt 0:05:13]} (55. Ke4 $5) 55... g3 {[%emt 0:00:17]} 56. Kxf6 {[%emt 0:00:21]} Nd7+ {[%emt 0:02:06] [#]} (56... Ng4+ $11 57. Ke6 (57. Nxg4 $2 {loses.} g2 $19) 57... Kb8) 57. Ke6 {[%emt 0:03:21]} (57. Ke7 $1 $16 {a7 would kill now.} Ne5 58. f6) 57... Nc5+ $11 {[%emt 0:00:18]} 58. Kd6 {[%emt 0:01:28]} Ne4+ $1 {[%emt 0:00:42]} 59. Kc6 {[%emt 0:00:49]} (59. Ke5 $5 Nc5 $8 60. Kd6 (60. a7 Kb7 $11) (60. f6 Nd7+ 61. Ke4 Nxf6+ 62. Kf3 Nd7 $11) 60... Nxa6 61. f6 $14) 59... Kb8 {[%emt 0:00:13]} 60. Kb6 {[%emt 0:00:01]} Nf6 $1 {[%emt 0:00:47]} 61. Ng2 {[%emt 0:01:38]} Nd5+ {[%emt 0:00:23]} 62. Kc5 {[%emt 0:00:08]} Nf6 {[%emt 0:00:07]} 63. Nf4 {[%emt 0:00:42]} Ka7 {[%emt 0:00:15]} 64. Kb5 {[%emt 0:00:08]} Ne4 {[%emt 0:00:26]} 65. Ka5 {[%emt 0:00:12]} Nf6 {[%emt 0:00:18]} 66. Ng2 {[%emt 0:00:24]} Ne4 {[%emt 0:00:13]} 67. Ne3 {[%emt 0:00:07]} Nf6 {[%emt 0:00:24]} 1/2-1/2

[Event "125-Jahre Werder Bremen 2024"]
[Site "Bremen"]
[Date "2024.03.03"]
[Round "2.7"]
[White "Radeva, Viktoria"]
[Black "Plat, Vojtech"]
[Result "0-1"]
[ECO "B02"]
[WhiteElo "2325"]
[BlackElo "2528"]
[Annotator "TA"]
[PlyCount "116"]
[EventDate "2024.02.26"]
[EventType "swiss"]
[EventCountry "GER"]
[SourceTitle "playchess.com"]
[Source "ChessBase"]
[SourceQuality "1"]
[TimeControl "40/6000+30:1800+30"]

{[%evp 29,116,24,33,27,33,18,16,23,33,29,50,39,45,43,47,45,67,34,45,4,13,0,0,4,20,0,2,0,0,0,0,0,0,0,0,0,10,0,8,-2,0,0,0,-7,0,0,0,-18,-26,-29,-21,-28,-16,-25,-23,-179,-176,-187,-163,-135,-27,-293,-280,-751,-244,-221,-226,-497,-488,-1016,-1012,-852,-604,-1008,-962,-29968,-29967,-29971,-29971,-29966,-29964,-29977,-29978,-29979,-29980,-29979,-29980,-29980,-29981]} 1. e4 {[%emt 0:00:04]} Nf6 {[%emt 0:00:19]} 2. e5 {[%emt 0:00:11]} Ng8 {[%emt 0:00:28]} 3. Nf3 {[%emt 0:00:43]} d6 {[%emt 0:00:15]} 4. exd6 {[%emt 0:00:29]} cxd6 {[%emt 0:01:27]} 5. d4 {[%emt 0:00:16]} Nf6 {[%emt 0:00:06]} 6. Bd3 {[%emt 0:00:39] B02: Alekhine's Defence: Chase Variation and lines with early Nc3.} g6 {[%emt 0:00:04]} 7. O-O {[%emt 0:11:07]} Bg7 {[%emt 0:00:18]} 8. Re1 {[%emt 0:02:11]} Nc6 {[%emt 0:00:33]} 9. c3 {[%emt 0:01:44]} O-O {[%emt 0:00:09]} 10. h3 {[%emt 0:04:41]} b6 {[%emt 0:01:20]} 11. Bf4 {[%emt 0:00:37]} Bb7 {[%emt 0:00:08]} 12. Bh2 $146 {[%emt 0:03:36]} ({Predecessor:} 12. Bf1 Nh5 13. Bh2 Qc7 14. Na3 Rae8 15. Nc4 Qd8 16. a4 d5 17. Nce5 Bxe5 18. Nxe5 f6 19. Nxc6 Bxc6 {1-0 Stocek,J (2566)-Obolentseva,A (2315) Marianske Lazne GM-A2 17th 2018 (5)}) 12... Re8 {[%emt 0:00:55]} 13. Nbd2 {[%emt 0:01:09]} Qd7 {[%emt 0:06:38]} 14. Qb3 {[%emt 0:07:17]} Rad8 {[%emt 0:05:36]} 15. Rad1 {[%emt 0:01:17]} Qc8 {[%emt 0:04:44]} 16. Ng5 {[%emt 0:04:50]} d5 {[%emt 0:05:40]} 17. Ngf3 {[%emt 0:02:15]} Nd7 {[%emt 0:01:13]} 18. Bb5 {[%emt 0:11:33]} (18. Qxd5 $2 Nc5 (18... Nxd4 19. Qc4 $15) 19. Qc4 Ba6 20. dxc5 Bxc4 21. Bxc4 bxc5 $19) 18... a6 {[%emt 0:04:24]} 19. Bf1 {[%emt 0:03:43]} b5 {[%emt 0:00:14]} 20. a4 {[%emt 0:03:44]} (20. Qxd5 Nxd4 21. Qg5 Nf5 $17) 20... bxa4 {[%emt 0:06:21]} 21. Qxa4 {[%emt 0:00:12]} (21. Qxd5 Nxd4 22. Qa5 Nxf3+ 23. Nxf3 Nc5 $11) 21... e5 {[%emt 0:00:05]} 22. dxe5 {[%emt 0:04:47]} Ndxe5 {[%emt 0:00:19]} 23. Nxe5 {[%emt 0:02:45]} Nxe5 {[%emt 0:00:09]} 24. Bxe5 {[%emt 0:03:54]} Rxe5 {[%emt 0:01:11]} 25. Rxe5 {[%emt 0:00:23]} Bxe5 {[%emt 0:00:06]} 26. Nf3 {[%emt 0:00:06]} Bg7 {[%emt 0:00:26]} 27. Nd4 {[%emt 0:00:45]} Qc7 {[%emt 0:02:03]} 28. Re1 {[%emt 0:18:17]} (28. Bxa6 $2 {perishes.} Ra8 29. Re1 Rxa6 $19 (29... Bxa6 $2 30. Re8+ Rxe8 31. Qxe8+ Bf8 32. Qa4 $19)) 28... Qb6 {[%emt 0:00:16]} 29. Re8+ {[%emt 0:05:13]} Rxe8 {[%emt 0:00:05]} 30. Qxe8+ {[%emt 0:00:02]} Bf8 {[%emt 0:00:05]} 31. b4 {[%emt 0:02:46]} Qc7 {[%emt 0:05:19]} 32. Qe3 {[%emt 0:04:02]} Bd6 {[%emt 0:00:39]} 33. Nb3 {[%emt 0:03:50]} Bc8 {[%emt 0:00:25]} 34. Qd3 {[%emt 0:02:00]} Bf8 {[%emt 0:01:17]} 35. Qe3 {[%emt 0:03:09]} h5 {[%emt 0:00:28]} 36. Qd3 {[%emt 0:02:07]} Kh7 {[%emt 0:03:51]} 37. Qxd5 {[%emt 0:00:48]} Be6 {[%emt 0:00:06]} 38. Qa5 {[%emt 0:00:10]} Qxc3 {[%emt 0:00:31]} 39. Nc5 {[%emt 0:00:09]} Bxc5 {[%emt 0:04:02]} 40. Qxc5 {[%emt 0:00:05]} Qxc5 {[%emt 0:00:40]} 41. bxc5 {[%emt 0:30:08]} a5 {[%emt 0:30:01]} 42. Bb5 $2 {[%emt 0:00:00]} (42. c6 $1 $11) 42... Kg7 $19 {[%emt 0:00:00]} 43. f4 {[%emt 0:00:00]} Kf6 {[%emt 0:00:00]} 44. Kf2 {[%emt 0:00:00]} h4 {[%emt 0:00:00]} (44... Ke7 $17 {White must now prevent ...Bb3.} 45. Ke3 Bd7) 45. Ke3 $2 {[%emt 0:00:00][%mdl 8192]} (45. g3 $11 {and White has nothing to worry.}) 45... Bd5 $19 {[%emt 0:00:00]} 46. c6 $2 {[%emt 0:00:00]} (46. Kf2 Bb3 47. Ke3) 46... Ke7 $2 {[%emt 0:00:00]} (46... Bxg2 47. c7 Bxh3) 47. c7 $19 {[%emt 0:00:00]} Bb7 $1 {[%emt 0:00:00]} 48. Bc6 $2 {[%emt 0:00:00]} (48. f5 gxf5 49. Kf4) 48... Bc8 $19 {[%emt 0:00:00]} 49. Kd4 {[%emt 0:00:00]} (49. Bb5 $142 Kd6 50. Kf3 (50. Be8 f6 $17)) 49... Kd6 $19 {[%emt 0:00:00]} 50. Be8 {[%emt 0:00:00]} f6 {[%emt 0:00:00]} (50... Kxc7 $2 51. Bxf7 Bb7 52. Bxg6 $19) 51. Bxg6 {[%emt 0:00:00]} Kxc7 {[%emt 0:00:00]} 52. Kc5 {[%emt 0:02:49]} Bb7 {[%emt 0:00:00]} 53. Kb5 {[%emt 0:02:16]} Bxg2 {[%emt 0:00:00]} 54. Bf5 {[%emt 0:00:04]} Kd6 {[%emt 0:00:00]} 55. Kxa5 {[%emt 0:00:07]} Kc5 {[%emt 0:00:00]} 56. Bg4 {[%emt 0:00:38]} Kd4 {[%emt 0:00:00]} 57. Kb4 {[%emt 0:01:37]} Ke4 {[%emt 0:00:00]} 58. f5 {[%emt 0:00:26]} Bf3 {[%emt 0:00:00]} 0-1

[Event "125-Jahre Werder Bremen 2024"]
[Site "Bremen"]
[Date "2024.03.03"]
[Round "2.8"]
[White "Krastev, Alexander"]
[Black "Soderstrom, Adrian"]
[Result "1/2-1/2"]
[ECO "C10"]
[WhiteElo "2457"]
[BlackElo "2288"]
[Annotator "TA"]
[PlyCount "99"]
[EventDate "2024.02.26"]
[EventType "swiss"]
[EventCountry "GER"]
[SourceTitle "playchess.com"]
[Source "ChessBase"]
[SourceQuality "1"]
[TimeControl "40/6000+30:1800+30"]

{[%evp 17,99,31,37,29,27,31,23,20,59,31,81,30,27,27,24,13,39,16,27,34,55,0,77,76,114,38,129,126,108,85,85,81,87,87,87,87,87,87,87,87,94,87,94,0,94,87,87,87,87,87,96,97,97,99,122,131,116,114,128,106,134,99,128,0,89,89,145,130,136,136,133,127,100,104,81,114,102,104,99,40,54,50,53,0]} 1. e4 {[%emt 0:06:42]} e6 {[%emt 0:00:15]} 2. d4 {[%emt 0:00:20]} d5 {[%emt 0:00:12]} 3. Nc3 {[%emt 0:00:09]} dxe4 {[%emt 0:00:44]} 4. Nxe4 {[%emt 0:00:04]} Bd7 {[%emt 0:01:03]} 5. Nf3 {[%emt 0:02:00]} Bc6 {[%emt 0:00:24]} 6. Bd3 {[%emt 0:00:24]} Nd7 {[%emt 0:00:08]} 7. O-O {[%emt 0:01:33]} Ngf6 {[%emt 0:00:06]} 8. Ned2 {[%emt 0:04:24]} Be7 {[%emt 0:01:39]} 9. Re1 {[%emt 0:01:47]} O-O {[%emt 0:03:14]} 10. c3 {[%emt 0:03:05]} b6 {[%emt 0:08:19]} 11. b4 {[%emt 0:37:47]} Bb7 {[%emt 0:05:56]} 12. Rb1 {[%emt 0:00:15] White has an edge.} Qc8 {[%emt 0:05:32]} 13. c4 {[%emt 0:02:05][%cal Od4d5]} Rd8 {[%emt 0:07:48]} (13... c6 $14) 14. Qc2 {[%emt 0:01:54]} (14. d5 $1 $16) 14... Nf8 {[%emt 0:10:11]} 15. c5 {[%emt 0:08:04]} Bd5 {[%emt 0:04:00]} 16. Ne5 {[%emt 0:08:26]} N6d7 {[%emt 0:05:30]} 17. Ndf3 {[%emt 0:09:49]} Nxe5 {[%emt 0:00:24]} 18. Nxe5 {[%emt 0:00:04]} Bf6 {[%emt 0:01:20]} 19. c6 {[%emt 0:01:43]} ({White should try} 19. Bf4 $14) 19... a5 {[%emt 0:04:46]} (19... Bxe5 $11 {keeps the balance.} 20. Rxe5 (20. dxe5 Bxc6 21. Bxh7+ Nxh7 $11) 20... a6) 20. b5 $16 {[%emt 0:00:14]} Ng6 {[%emt 0:06:02]} 21. Ba3 {[%emt 0:00:28]} (21. Re3 $16) 21... Bxe5 {[%emt 0:04:54]} ({Black should play} 21... Re8 $14) 22. dxe5 {[%emt 0:00:23]} Re8 {[%emt 0:08:08]} 23. Rbd1 {[%emt 0:19:37][%cal Of2f4]} Qd8 {[%emt 0:01:38]} 24. Bxg6 {[%emt 0:00:36]} fxg6 {[%emt 0:00:48]} 25. Rd4 {[%emt 0:00:34]} Qg5 {[%emt 0:00:57][%csl Gd5][%cal Rg5g2] [#] Prevents Rg4.} 26. f4 $1 {[%emt 0:00:03] Active counter play!} Qf5 {[%emt 0:01:39] Black is weak on the dark squares} 27. Qd2 {[%emt 0:00:04]} Rad8 {[%emt 0:02:25]} 28. h3 {[%emt 0:00:04]} Qf7 {[%emt 0:04:05]} 29. Kh2 {[%emt 0:00:57]} Qf5 {[%emt 0:00:13]} 30. Kg1 {[%emt 0:01:18]} Qf7 $1 {[%emt 0:00:03]} 31. Re3 {[%emt 0:00:32][%cal Be1e3,Be3d3,Bd3d2][%mdl 32]} Qf5 {[%emt 0:00:13]} 32. Red3 {[%emt 0:00:27]} Qf7 {[%emt 0:01:45]} 33. Qe3 {[%emt 0:00:19]} Rc8 {[%emt 0:01:56]} 34. Rd2 {[%emt 0:00:05]} Qf5 {[%emt 0:00:20]} 35. Qe1 {[%emt 0:01:00] Inhibits Qb1.} Rcd8 {[%emt 0:00:25]} 36. g4 {[%emt 0:00:38]} Qf7 {[%emt 0:00:07][%cal Og6g5]} 37. Qe3 {[%emt 0:00:08]} Kh8 {[%emt 0:00:50]} 38. Kh2 {[%emt 0:00:20]} Kg8 {[%emt 0:00:05]} 39. Kg3 {[%emt 0:00:06]} Kh8 {[%emt 0:00:33]} 40. Kh2 {[%emt 0:00:35]} Kg8 $1 {[%emt 0:00:48]} 41. Qd3 {[%emt 0:09:25][%cal Of4f5]} Kh8 {[%emt 0:02:57] [#]} (41... h6 $142) 42. f5 $1 {[%emt 0:06:30][%mdl 512]} gxf5 {[%emt 0:00:35]} 43. gxf5 {[%emt 0:00:04]} Qh5 {[%emt 0:02:11]} ({Don't go for} 43... exf5 $2 44. Rxd5 Rxd5 45. Qxd5 $18) 44. Rf2 {[%emt 0:00:06]} Qf7 {[%emt 0:05:53]} 45. f6 {[%emt 0:04:11]} (45. Rh4 {simplifies} Bxa2 46. Qc2 exf5 47. Qxa2 Qxa2 48. Rxa2 Rd3 49. Bc1) 45... gxf6 {[%emt 0:01:25]} 46. exf6 {[%emt 0:13:25]} e5 {[%emt 0:08:36][%csl LRa2,LRd4]} 47. Rh4 {[%emt 0:00:01]} Bxc6 {[%emt 0:07:03]} 48. Qe3 {[%emt 0:00:00] Dancing on a razor blade.} (48. Qc2 $16 Bd7 49. Qxc7) 48... Bb7 $14 {[%emt 0:01:30] White must now prevent ...Rd1.} 49. Rg4 $1 {[%emt 0:00:06][%mdl 1024] Threatens to win with Rg7. White has compensation.} Rd1 {[%emt 0:01:09] ...Red8 would now be deadly.} 50. Bb2 {[%emt 0:02:39] Weighted Error Value: White=0.17 (very precise) /Black=0.15 (very precise) .  Mistake:       	White=5     	Black=4      Inaccurate:     	White=2     	Black=2      OK:         	White=14    	Black=10     Best:        	White=2     	Black=5      Strong:       	White=2     	Black=2} (50. Qg5 $1 $14 Rh1+ 51. Kg3 Rg1+ 52. Kh4 Rxg4+ 53. hxg4) 1/2-1/2

[Event "125-Jahre Werder Bremen 2024"]
[Site "Bremen"]
[Date "2024.03.03"]
[Round "2.9"]
[White "Hejazipour, Mitra"]
[Black "Knaak, Rainer"]
[Result "1-0"]
[ECO "D30"]
[WhiteElo "2356"]
[BlackElo "2450"]
[Annotator "TA"]
[PlyCount "81"]
[EventDate "2024.02.26"]
[EventType "swiss"]
[EventCountry "GER"]
[SourceTitle "playchess.com"]
[Source "ChessBase"]
[SourceQuality "1"]
[TimeControl "40/6000+30:1800+30"]

{[%evp 9,81,0,5,0,0,0,5,-20,16,14,35,25,116,30,29,13,18,13,38,30,49,-22,59,5,24,26,50,-12,-19,-8,6,11,17,0,0,0,17,21,52,46,56,54,85,73,63,72,110,55,50,48,68,55,66,63,102,39,79,56,64,52,99,99,108,94,286,253,300,299,451,422,598,601,599,554]} 1. d4 {[%emt 0:00:08]} d5 {[%emt 0:00:11]} 2. Nf3 {[%emt 0:00:25]} Nf6 {[%emt 0:00:25]} 3. c4 {[%emt 0:00:18]} e6 {[%emt 0:00:07]} 4. e3 {[%emt 0:00:27][%cal Be2e3,Be3e4,Be4e5][%mdl 32]} Nbd7 {[%emt 0:01:45]} 5. Nbd2 {[%emt 0:04:43]} Be7 {[%emt 0:07:40]} 6. Bd3 {[%emt 0:02:16]} O-O {[%emt 0:06:20]} 7. O-O {[%emt 0:06:05]} b6 {[%emt 0:04:47]} 8. e4 {[%emt 0:22:49] The position is equal.} Bb7 {[%emt 0:01:43]} 9. cxd5 {[%emt 0:07:01]} exd5 {[%emt 0:00:10]} 10. e5 {[%emt 0:00:03]} Nh5 {[%emt 0:19:16] [#]} (10... Ne4 $11 {remains equal.}) 11. Qc2 {[%emt 0:05:03]} (11. Ng5 $1 $16 Nf4 12. Bxh7+ Kh8 13. Bf5) 11... g6 $11 {[%emt 0:00:55]} 12. Re1 {[%emt 0:12:28]} Ng7 {[%emt 0:03:09]} 13. Nf1 {[%emt 0:00:28]} Re8 {[%emt 0:01:49]} 14. Ne3 {[%emt 0:25:18]} Ne6 {[%emt 0:11:34] Prevents h4.} 15. Qb3 {[%emt 0:05:45]} (15. Ng4 $14) 15... Ndf8 {[%emt 0:00:59]} (15... c5 $11) 16. a4 {[%emt 0:00:47]} (16. Ng4 $14) 16... a6 {[%emt 0:13:01]} 17. Ng4 {[%emt 0:03:06]} h5 {[%emt 0:06:32]} 18. Ne3 {[%emt 0:03:31]} ({Better is} 18. Nh6+ $14 Kg7 19. Qd1) 18... c5 {[%emt 0:00:17] White must now prevent ...c4.} 19. Qd1 {[%emt 0:00:13]} Nh7 {[%emt 0:02:26]} 20. Nc2 {[%emt 0:01:15]} c4 {[%emt 0:05:28]} 21. Bf1 {[%emt 0:00:14]} b5 {[%emt 0:00:17]} 22. Bd2 {[%emt 0:00:30]} Bc6 {[%emt 0:04:14]} 23. a5 {[%emt 0:00:26]} Bb7 {[%emt 0:04:55][%cal Bc6b7,Bb7c8,Bc8f5][%mdl 32]} 24. g3 {[%emt 0:01:15]} Bc8 {[%emt 0:04:02]} 25. Bb4 {[%emt 0:01:01]} Nc7 {[%emt 0:01:57]} 26. Qd2 {[%emt 0:00:46] Black is weak on the dark squares} Bf5 {[%emt 0:00:42]} 27. Bxe7 {[%emt 0:00:30]} Qxe7 {[%emt 0:00:13]} 28. Nb4 {[%emt 0:00:09]} (28. Ne3 $16) 28... Be4 $14 {[%emt 0:02:40]} 29. Bg2 {[%emt 0:00:24]} Kg7 {[%emt 0:00:54]} 30. Nh4 {[%emt 0:01:38]} Bxg2 {[%emt 0:00:06]} 31. Kxg2 {[%emt 0:00:32]} Ne6 {[%emt 0:01:55][%cal Oe6d4] [#] Prevents f4.} 32. Nf3 {[%emt 0:01:32]} (32. Nxd5 $2 {perishes.} Qb7 33. f4 Rad8 $19 (33... Qxd5+ $2 34. Nf3 $19)) (32. Rad1 $1 $16) 32... Qd7 {[%emt 0:00:07]} 33. Re2 {[%emt 0:02:00]} Red8 {[%emt 0:00:09]} 34. h4 {[%emt 0:00:55]} Qe8 {[%emt 0:01:16]} (34... Kg8 $14) 35. Ne1 $16 {[%emt 0:00:13][%cal Bf3e1,Be1c2,Bc2e3,Be3f5][%mdl 32] White is more active.} Nhf8 {[%emt 0:02:10]} 36. Nec2 {[%emt 0:00:10] f4 is the strong threat.} Nc7 $2 {[%emt 0:00:37] Loses the game.} (36... Kg8 $16 {keeps fighting.}) 37. Ne3 {[%emt 0:00:20]} Qe6 {[%emt 0:01:09]} 38. f4 {[%emt 0:00:17]} Kg8 {[%emt 0:01:02]} (38... f5 {might work better.} 39. exf6+ Qxf6) 39. Rf1 {[%emt 0:00:24] White is clearly winning.} Ne8 {[%emt 0:00:19]} (39... f5 $142 40. exf6 Qxf6) 40. f5 $18 {[%emt 0:00:22]} gxf5 {[%emt 0:00:21]} 41. Nxf5 {[%emt 0:30:36] Weighted Error Value: White=0.19 (very precise) /Black=0.35.  Loses game:     	---       	Black=1      Mistake:       	White=6     	Black=5      Inaccurate:     	---       	Black=6      OK:         	White=16    	Black=8      Best:        	White=2     	Black=1} 1-0